[Event "Schack-SM 2023: Mastarklassen"]
[Site "Helsingborg Arena, Mellersta Stenbocksgatan 14, Helsingborg, Sweden"]
[Date "2023.07.01"]
[Round "1.1"]
[White "Liden, Tommy"]
[Black "Lundin, Jan"]
[Result "0-1"]
[TimeControl "90 minutes for 40 moves + 30 minutes for the rest of games + 30 seconds per move from move one."]
[BlackTitle "FM"]
[WhiteElo "2107"]
[BlackElo "2203"]

1. e4 {[%clk 01:30:58]} {[%emt 00:00:01]} c6 {[%clk 01:30:57]} {[%emt
00:00:04]} 2. d4 {[%clk 01:31:22]} {[%emt 00:00:06]} d5 {[%clk 01:31:23]}
{[%emt 00:00:04]} 3. e5 {[%clk 01:31:47]} {[%emt 00:00:06]} Bf5 {[%clk
01:31:47]} {[%emt 00:00:05]} 4. Nf3 {[%clk 01:32:05]} {[%emt 00:00:12]} e6
{[%clk 01:32:04]} {[%emt 00:00:13]} 5. Be2 {[%clk 01:32:23]} {[%emt 00:00:11]}
Nd7 {[%clk 01:32:27]} {[%emt 00:00:07]} 6. O-O {[%clk 01:32:39]} {[%emt
00:00:14]} Bg6 {[%clk 01:32:50]} {[%emt 00:00:08]} 7. Nbd2 {[%clk 01:32:32]}
{[%emt 00:00:36]} Nh6 {[%clk 01:32:58]} {[%emt 00:00:22]} 8. Nb3 {[%clk
01:28:45]} {[%emt 00:04:16]} Be7 {[%clk 01:32:47]} {[%emt 00:00:42]} 9. a4
{[%clk 01:28:46]} {[%emt 00:00:30]} O-O {[%clk 01:32:43]} {[%emt 00:00:33]} 10.
Bxh6 {[%clk 01:27:32]} {[%emt 00:01:44]} gxh6 {[%clk 01:33:03]} {[%emt
00:00:09]} 11. Ne1 {[%clk 01:22:59]} {[%emt 00:05:03]} c5 {[%clk 01:24:27]}
{[%emt 00:09:07]} 12. c3 {[%clk 01:23:16]} {[%emt 00:00:13]} cxd4 {[%clk
01:23:24]} {[%emt 00:01:33]} 13. cxd4 {[%clk 01:23:41]} {[%emt 00:00:04]} Rc8
{[%clk 01:14:06]} {[%emt 00:09:49]} 14. a5 {[%clk 01:22:36]} {[%emt 00:01:35]}
Nb8 {[%clk 01:05:13]} {[%emt 00:09:22]} 15. f4 {[%clk 01:04:44]} {[%emt
00:18:23]} Nc6 {[%clk 01:04:03]} {[%emt 00:01:40]} 16. g4 {[%clk 01:02:37]}
{[%emt 00:02:37]} Be4 {[%clk 00:57:01]} {[%emt 00:07:32]} 17. Bf3 {[%clk
00:39:15]} {[%emt 00:23:51]} Kh8 {[%clk 00:47:15]} {[%emt 00:10:16]} 18. Kh1
{[%clk 00:34:22]} {[%emt 00:05:25]} f6 {[%clk 00:37:17]} {[%emt 00:10:27]} 19.
Qe2 {[%clk 00:26:07]} {[%emt 00:08:45]} fxe5 {[%clk 00:32:40]} {[%emt
00:05:08]} 20. fxe5 {[%clk 00:21:53]} {[%emt 00:04:44]} Nb4 {[%clk 00:27:52]}
{[%emt 00:05:17]} 21. Rd1 {[%clk 00:06:25]} {[%emt 00:15:59]} Bg6 {[%clk
00:26:21]} {[%emt 00:02:00]} 22. Qd2 {[%clk 00:03:17]} {[%emt 00:03:38]} Kg7
{[%clk 00:25:52]} {[%emt 00:00:59]} 23. Rc1 {[%clk 00:02:00]} {[%emt 00:01:47]}
Qd7 {[%clk 00:24:41]} {[%emt 00:01:41]} 24. Nc5 {[%clk 00:01:07]} {[%emt
00:01:24]} Bxc5 {[%clk 00:21:00]} {[%emt 00:04:12]} 25. dxc5 {[%clk 00:01:32]}
{[%emt 00:00:05]} Qb5 {[%clk 00:21:06]} {[%emt 00:00:23]} 26. Ng2 {[%clk
00:00:56]} {[%emt 00:01:06]} Nd3 {[%clk 00:12:37]} {[%emt 00:08:59]} 27. Be2
{[%clk 00:00:51]} {[%emt 00:00:35]} Nf2+ {[%clk 00:12:54]} {[%emt 00:00:12]} 28.
Kg1 {[%clk 00:00:35]} {[%emt 00:00:47]} Nh3+ {[%clk 00:12:15]} {[%emt
00:01:09]} 29. Kh1 {[%clk 00:01:02]} {[%emt 00:00:04]} Rxf1+ {[%clk 00:07:15]}
{[%emt 00:05:29]} 30. Bxf1 {[%clk 00:01:12]} {[%emt 00:00:20]} Qa4 {[%clk
00:07:23]} {[%emt 00:00:22]} 31. b4 {[%clk 00:01:08]} {[%emt 00:00:35]} Rf8
{[%clk 00:07:30]} {[%emt 00:00:22]} 32. Qe3 {[%clk 00:00:40]} {[%emt 00:00:57]}
Nf2+ {[%clk 00:06:03]} {[%emt 00:01:57]} 33. Kg1 {[%clk 00:01:02]} {[%emt
00:00:08]} Qxb4 {[%clk 00:06:13]} {[%emt 00:00:21]} 34. Nf4 {[%clk 00:01:08]}
{[%emt 00:00:23]} Qxf4 {[%clk 00:06:07]} {[%emt 00:00:36]} 35. Qb3 {[%clk
00:00:37]} {[%emt 00:01:02]} 0-1

[Event "Schack-SM 2023: Mastarklassen"]
[Site "Helsingborg Arena, Mellersta Stenbocksgatan 14, Helsingborg, Sweden"]
[Date "2023.07.01"]
[Round "1.2"]
[White "Cederstam, Carl"]
[Black "Sundin, Emanuel"]
[Result "1/2-1/2"]
[TimeControl "90 minutes for 40 moves + 30 minutes for the rest of games + 30 seconds per move from move one."]
[WhiteTitle "FM"]
[WhiteElo "2196"]
[BlackElo "2103"]

1. c4 {[%clk 01:30:55]} {[%emt 00:00:05]} e5 {[%clk 01:30:34]} {[%emt
00:00:26]} 2. g3 {[%clk 01:31:18]} {[%emt 00:00:06]} Nf6 {[%clk 01:28:34]}
{[%emt 00:02:31]} 3. Bg2 {[%clk 01:31:36]} {[%emt 00:00:12]} c6 {[%clk
01:28:33]} {[%emt 00:00:31]} 4. Nf3 {[%clk 01:32:00]} {[%emt 00:00:07]} e4
{[%clk 01:28:41]} {[%emt 00:00:21]} 5. Nd4 {[%clk 01:32:28]} {[%emt 00:00:02]}
d5 {[%clk 01:23:12]} {[%emt 00:05:59]} 6. cxd5 {[%clk 01:32:51]} {[%emt
00:00:07]} Qb6 {[%clk 01:19:57]} {[%emt 00:03:46]} 7. Nb3 {[%clk 01:33:08]}
{[%emt 00:00:12]} cxd5 {[%clk 01:19:04]} {[%emt 00:01:23]} 8. Nc3 {[%clk
01:29:01]} {[%emt 00:04:37]} Nc6 {[%clk 01:13:06]} {[%emt 00:06:29]} 9. d3
{[%clk 01:25:48]} {[%emt 00:03:42]} Be7 {[%clk 01:10:27]} {[%emt 00:03:09]} 10.
O-O {[%clk 01:20:09]} {[%emt 00:06:09]} O-O {[%clk 01:10:01]} {[%emt 00:00:57]}
11. Be3 {[%clk 01:15:48]} {[%emt 00:04:49]} d4 {[%clk 00:59:26]} {[%emt
00:11:06]} 12. Nxd4 {[%clk 00:55:43]} {[%emt 00:20:35]} Nxd4 {[%clk 00:59:22]}
{[%emt 00:00:34]} 13. dxe4 {[%clk 00:55:50]} {[%emt 00:00:22]} Rd8 {[%clk
00:52:54]} {[%emt 00:06:59]} 14. Nd5 {[%clk 00:13:46]} {[%emt 00:42:34]} Nxd5
{[%clk 00:45:41]} {[%emt 00:07:43]} 15. exd5 {[%clk 00:13:38]} {[%emt
00:00:38]} Bc5 {[%clk 00:42:31]} {[%emt 00:03:41]} 16. Rc1 {[%clk 00:13:58]}
{[%emt 00:00:09]} Bg4 {[%clk 00:35:44]} {[%emt 00:07:17]} 17. Bxd4 {[%clk
00:13:04]} {[%emt 00:01:23]} Bxd4 {[%clk 00:35:16]} {[%emt 00:00:59]} 18. Rc4
{[%clk 00:09:15]} {[%emt 00:04:18]} Re8 {[%clk 00:22:19]} {[%emt 00:13:28]} 19.
Qxd4 {[%clk 00:05:04]} {[%emt 00:04:40]} Bxe2 {[%clk 00:21:37]} {[%emt
00:01:12]} 20. Qxb6 {[%clk 00:05:08]} {[%emt 00:00:27]} axb6 {[%clk 00:21:55]}
{[%emt 00:00:12]} 21. Rc7 {[%clk 00:05:18]} {[%emt 00:00:19]} Bxf1 {[%clk
00:21:56]} {[%emt 00:00:30]} 22. Bxf1 {[%clk 00:05:45]} {[%emt 00:00:02]} Rxa2
{[%clk 00:17:42]} {[%emt 00:04:44]} 23. d6 {[%clk 00:05:44]} {[%emt 00:00:31]}
Rd8 {[%clk 00:16:10]} {[%emt 00:02:03]} 24. Bc4 {[%clk 00:01:40]} {[%emt
00:04:33]} Ra1+ {[%clk 00:12:26]} {[%emt 00:04:15]} 25. Kg2 {[%clk 00:02:09]}
{[%emt 00:00:01]} Rd1 {[%clk 00:11:58]} {[%emt 00:00:57]} 26. Rxf7 {[%clk
00:01:46]} {[%emt 00:00:55]} Kh8 {[%clk 00:11:24]} {[%emt 00:01:03]} 27. Rxb7
{[%clk 00:01:40]} {[%emt 00:00:36]} R1xd6 {[%clk 00:11:25]} {[%emt 00:00:29]}
28. b3 {[%clk 00:01:43]} {[%emt 00:00:27]} g6 {[%clk 00:05:32]} {[%emt
00:06:24]} 29. h4 {[%clk 00:01:43]} {[%emt 00:00:29]} R8d7 {[%clk 00:05:14]}
{[%emt 00:00:48]} 30. Rb8+ {[%clk 00:02:11]} {[%emt 00:00:02]} Kg7 {[%clk
00:05:34]} {[%emt 00:00:10]} 31. Rg8+ {[%clk 00:02:35]} {[%emt 00:00:06]} Kf6
{[%clk 00:05:35]} {[%emt 00:00:29]} 32. Kf3 {[%clk 00:00:36]} {[%emt 00:02:28]}
Rd8 {[%clk 00:05:03]} {[%emt 00:01:02]} 33. Rxd8 {[%clk 00:00:36]} {[%emt
00:00:31]} Rxd8 {[%clk 00:05:32]} 34. Ke4 {[%clk 00:00:51]} {[%emt 00:00:13]}
Rd2 {[%clk 00:04:00]} {[%emt 00:02:03]} 35. f3 {[%clk 00:01:20]} {[%emt
00:00:02]} Rg2 {[%clk 00:02:39]} {[%emt 00:01:50]} 36. Kf4 {[%clk 00:01:49]}
{[%emt 00:00:02]} Rg1 {[%clk 00:02:30]} {[%emt 00:00:39]} 37. Bd5 {[%clk
00:00:54]} {[%emt 00:01:25]} b5 {[%clk 00:01:46]} {[%emt 00:01:15]} 38. Bc6
{[%clk 00:00:52]} {[%emt 00:00:31]} b4 {[%clk 00:01:38]} {[%emt 00:00:38]} 39.
Bd5 {[%clk 00:00:49]} {[%emt 00:00:32]} Re1 {[%clk 00:01:10]} {[%emt 00:00:58]}
40. Bc4 {[%clk 00:00:54]} {[%emt 00:00:26]} Re7 {[%clk 00:00:52]} {[%emt
00:00:48]} 41. Bd5 {[%clk 00:27:05]} {[%emt 00:04:18]} Re1 {[%clk 00:28:54]}
{[%emt 00:02:29]} 42. Bc4 {[%clk 00:27:28]} {[%emt 00:00:06]} Re5 {[%clk
00:24:57]} {[%emt 00:04:27]} 43. Bg8 {[%clk 00:26:42]} {[%emt 00:01:16]} h6
{[%clk 00:22:15]} {[%emt 00:03:13]} 44. Bc4 {[%clk 00:26:52]} {[%emt 00:00:19]}
Re7 {[%clk 00:21:39]} {[%emt 00:01:06]} 45. Bd5 {[%clk 00:26:37]} {[%emt
00:00:46]} Re1 {[%clk 00:21:01]} {[%emt 00:01:07]} 46. Bc4 {[%clk 00:25:51]}
{[%emt 00:01:16]} Re5 {[%clk 00:13:38]} {[%emt 00:07:53]} 47. Bg8 {[%clk
00:25:48]} {[%emt 00:00:33]} Re8 {[%clk 00:09:44]} {[%emt 00:04:25]} 48. Bc4
{[%clk 00:20:52]} {[%emt 00:05:25]} Re5 {[%clk 00:05:03]} {[%emt 00:05:11]} 49.
Bg8 {[%clk 00:21:15]} {[%emt 00:00:07]} Re8 {[%clk 00:04:22]} {[%emt 00:01:12]}
50. Bc4 {[%clk 00:21:39]} {[%emt 00:00:06]} Re5 {[%clk 00:04:19]} {[%emt
00:00:33]} 1/2-1/2

[ePGN "0.1;DGT LiveChess/2.2.5"]

[Event "Schack-SM 2023: Veteran-SM 65+"]
[Site "Helsingborg Arena, Mellersta Stenbocksgatan 14, Helsingborg, Sweden"]
[Date "2023.07.01"]
[Round "1.1"]
[White "Holst, Conny"]
[Black "Vrabec, Josip"]
[Result "0-1"]
[TimeControl "90 minutes for 40 moves + 30 minutes for the rest of games + 30 seconds per move from move one."]
[WhiteTitle "FM"]
[WhiteElo "2156"]
[BlackElo "1877"]

1. d4 {[%clk 01:30:49]} {[%emt 00:00:10]} Nf6 {[%clk 01:30:53]} {[%emt
00:00:08]} 2. c4 {[%clk 01:31:11]} {[%emt 00:00:07]} g6 {[%clk 01:31:16]}
{[%emt 00:00:07]} 3. Nc3 {[%clk 01:31:33]} {[%emt 00:00:08]} Bg7 {[%clk
01:31:41]} {[%emt 00:00:06]} 4. e4 {[%clk 01:31:48]} {[%emt 00:00:15]} d6
{[%clk 01:32:05]} {[%emt 00:00:06]} 5. Be2 {[%clk 01:31:36]} {[%emt 00:00:42]}
O-O {[%clk 01:32:18]} {[%emt 00:00:16]} 6. Bg5 {[%clk 01:31:24]} {[%emt
00:00:42]} Nbd7 {[%clk 01:32:26]} {[%emt 00:00:22]} 7. Qd2 {[%clk 01:30:08]}
{[%emt 00:01:47]} c6 {[%clk 01:32:22]} {[%emt 00:00:34]} 8. Nf3 {[%clk
01:25:30]} {[%emt 00:05:08]} e5 {[%clk 01:29:36]} {[%emt 00:03:16]} 9. O-O
{[%clk 01:22:46]} {[%emt 00:03:13]} exd4 {[%clk 01:23:28]} {[%emt 00:06:38]} 10.
Nxd4 {[%clk 01:23:03]} {[%emt 00:00:14]} Nc5 {[%clk 01:23:15]} {[%emt
00:00:43]} 11. f3 {[%clk 01:20:28]} {[%emt 00:03:05]} Nfxe4 {[%clk 01:16:15]}
{[%emt 00:07:30]} 12. Nxe4 {[%clk 01:10:55]} {[%emt 00:10:03]} Nxe4 {[%clk
01:15:58]} {[%emt 00:00:47]} 13. fxe4 {[%clk 01:11:16]} {[%emt 00:00:08]} Bxd4+
{[%clk 01:15:32]} {[%emt 00:00:57]} 14. Kh1 {[%clk 01:08:32]} {[%emt 00:03:14]}
Qb6 {[%clk 01:14:45]} {[%emt 00:01:15]} 15. Be7 {[%clk 00:57:51]} {[%emt
00:11:12]} Re8 {[%clk 01:12:44]} {[%emt 00:02:32]} 16. Bxd6 {[%clk 00:57:33]}
{[%emt 00:00:48]} Bg7 {[%clk 00:59:00]} {[%emt 00:14:13]} 17. e5 {[%clk
00:51:44]} {[%emt 00:06:19]} Bxe5 {[%clk 00:52:33]} {[%emt 00:06:57]} 18. c5
{[%clk 00:50:03]} {[%emt 00:02:11]} Qxb2 {[%clk 00:51:01]} {[%emt 00:02:03]} 19.
Qe3 {[%clk 00:40:01]} {[%emt 00:10:31]} Bf5 {[%clk 00:46:57]} {[%emt 00:04:34]}
20. Bc4 {[%clk 00:27:51]} {[%emt 00:12:42]} Bxd6 {[%clk 00:35:35]} {[%emt
00:11:51]} 21. Qh6 {[%clk 00:24:36]} {[%emt 00:03:45]} Bf8 {[%clk 00:32:20]}
{[%emt 00:03:45]} 22. Qh4 {[%clk 00:21:36]} {[%emt 00:03:29]} Re4 {[%clk
00:27:25]} {[%emt 00:05:26]} 23. Bxf7+ {[%clk 00:21:33]} {[%emt 00:00:33]} Kg7
{[%clk 00:25:49]} {[%emt 00:02:06]} 24. Qg3 {[%clk 00:18:53]} {[%emt 00:03:10]}
Qe5 {[%clk 00:19:47]} {[%emt 00:06:31]} 25. Qb3 {[%clk 00:18:12]} {[%emt
00:01:12]} Qe7 {[%clk 00:16:25]} {[%emt 00:03:50]} 26. Bc4 {[%clk 00:17:29]}
{[%emt 00:01:14]} Re8 {[%clk 00:15:31]} {[%emt 00:01:24]} 27. Rad1 {[%clk
00:15:07]} {[%emt 00:02:52]} Re3 {[%clk 00:10:22]} {[%emt 00:05:40]} 28. Qb2+
{[%clk 00:13:28]} {[%emt 00:02:09]} Kh6 {[%clk 00:08:51]} {[%emt 00:02:00]} 29.
h3 {[%clk 00:11:18]} {[%emt 00:02:40]} Qe4 {[%clk 00:08:29]} {[%emt 00:00:52]}
30. Rd4 {[%emt 00:06:29]} Rxh3+ {[%clk 00:07:54]} {[%emt 00:01:03]} 31. Kg1
{[%clk 00:05:38]} {[%emt 00:00:13]} Bxc5 {[%emt 00:00:16]} 0-1

[ePGN "0.1;DGT LiveChess/2.2.5"]

[Event "Schack-SM 2023: Veteran-SM 50+"]
[Site "Helsingborg Arena, Mellersta Stenbocksgatan 14, Helsingborg, Sweden"]
[Date "2023.07.01"]
[Round "1.1"]
[White "Petersson, Kjell"]
[Black "Kirppo, Ronny"]
[Result "1-0"]
[TimeControl "90 minutes for 40 moves + 30 minutes for the rest of games + 30 seconds per move from move one."]
[WhiteTitle "CM"]
[WhiteElo "2061"]
[BlackElo "1886"]

1. d4 {[%clk 01:30:58]} {[%emt 00:00:02]} Nf6 {[%clk 01:30:55]} {[%emt
00:00:06]} 2. Bf4 {[%clk 01:31:26]} {[%emt 00:00:02]} d5 {[%clk 01:31:06]}
{[%emt 00:00:19]} 3. e3 {[%clk 01:31:49]} {[%emt 00:00:06]} e6 {[%clk
01:31:30]} {[%emt 00:00:07]} 4. Nf3 {[%clk 01:31:57]} {[%emt 00:00:22]} c5
{[%clk 01:31:17]} {[%emt 00:00:42]} 5. c3 {[%clk 01:32:18]} {[%emt 00:00:10]}
Bd6 {[%clk 01:31:13]} {[%emt 00:00:33]} 6. Nbd2 {[%clk 01:32:10]} {[%emt
00:00:38]} Nc6 {[%clk 01:27:13]} {[%emt 00:04:30]} 7. Bg3 {[%clk 01:22:41]}
{[%emt 00:10:00]} O-O {[%clk 01:26:08]} {[%emt 00:01:35]} 8. Bd3 {[%clk
01:22:16]} {[%emt 00:00:55]} b6 {[%clk 01:16:27]} {[%emt 00:10:11]} 9. e4
{[%clk 01:22:19]} {[%emt 00:00:26]} dxe4 {[%clk 01:00:41]} {[%emt 00:16:16]} 10.
Nxe4 {[%clk 01:22:37]} {[%emt 00:00:12]} Nxe4 11. Bxe4 {[%clk 01:23:05]} Bb7
{[%clk 01:00:36]} {[%emt 00:00:24]} 12. dxc5 {[%clk 01:23:17]} {[%emt
00:00:18]} Bxc5 {[%clk 00:53:36]} {[%emt 00:07:29]} 13. Qa4 {[%clk 01:23:41]}
{[%emt 00:00:06]} Qe8 {[%clk 00:43:31]} {[%emt 00:10:35]} 14. Bxh7+ {[%clk
01:23:39]} {[%emt 00:00:33]} Kh8 {[%clk 00:39:42]} {[%emt 00:04:18]} 15. Qh4
{[%clk 01:23:52]} {[%emt 00:00:18]} g5 {[%clk 00:40:02]} {[%emt 00:00:09]} 16.
Qh6 {[%clk 01:22:30]} {[%emt 00:01:52]} 1-0

[Event "Schack-SM 2023: Mastarklassen"]
[Site "Helsingborg Arena, Mellersta Stenbocksgatan 14, Helsingborg, Sweden"]
[Date "2023.07.01"]
[Round "1.3"]
[White "Muntean, Victor"]
[Black "Frisk, Ellinor"]
[Result "1-0"]
[TimeControl "90 minutes for 40 moves + 30 minutes for the rest of games + 30 seconds per move from move one."]
[BlackTitle "WIM"]
[WhiteElo "2097"]
[BlackElo "2178"]

1. e4 {[%clk 01:30:58]} {[%emt 00:00:01]} d5 {[%clk 01:30:59]} {[%emt
00:00:02]} 2. exd5 {[%clk 01:31:16]} {[%emt 00:00:12]} Nf6 {[%clk 01:31:25]}
{[%emt 00:00:04]} 3. d4 {[%clk 01:29:39]} {[%emt 00:02:08]} Nxd5 {[%clk
01:31:50]} {[%emt 00:00:05]} 4. c4 {[%clk 01:29:08]} {[%emt 00:01:02]} Nb6
{[%clk 01:32:17]} {[%emt 00:00:02]} 5. Nc3 {[%clk 01:28:04]} {[%emt 00:01:33]}
e5 {[%clk 01:32:19]} {[%emt 00:00:29]} 6. Qe2 {[%clk 01:22:40]} {[%emt
00:05:54]} Be7 {[%clk 01:19:10]} {[%emt 00:13:39]} 7. dxe5 {[%clk 01:19:41]}
{[%emt 00:03:29]} Be6 {[%clk 01:14:16]} {[%emt 00:05:24]} 8. Qe4 {[%clk
01:16:23]} {[%emt 00:03:48]} Nc6 {[%clk 01:12:50]} {[%emt 00:01:56]} 9. Be3
{[%clk 01:15:16]} {[%emt 00:01:36]} O-O {[%clk 01:07:09]} {[%emt 00:06:12]} 10.
Rd1 {[%clk 01:11:10]} {[%emt 00:04:36]} Qc8 {[%clk 01:07:32]} {[%emt 00:00:07]}
11. c5 {[%clk 01:05:04]} {[%emt 00:06:36]} Nd7 {[%clk 01:06:01]} {[%emt
00:02:01]} 12. Nf3 {[%clk 01:05:07]} {[%emt 00:00:27]} Nxc5 {[%clk 01:02:13]}
{[%emt 00:04:18]} 13. Bxc5 {[%clk 01:02:56]} {[%emt 00:02:41]} Bxc5 {[%clk
01:02:39]} {[%emt 00:00:04]} 14. Bd3 {[%clk 01:03:11]} {[%emt 00:00:15]} g6
{[%clk 01:01:31]} {[%emt 00:01:38]} 15. Qf4 {[%clk 01:01:49]} {[%emt 00:01:52]}
Bg4 {[%clk 00:49:19]} {[%emt 00:12:42]} 16. Nd5 {[%clk 00:46:41]} {[%emt
00:15:37]} Bxf3 {[%clk 00:49:38]} {[%emt 00:00:11]} 17. gxf3 {[%clk 00:47:05]}
{[%emt 00:00:07]} Qe6 {[%clk 00:40:08]} {[%emt 00:10:00]} 18. Nf6+ {[%clk
00:41:41]} {[%emt 00:05:53]} Kh8 {[%clk 00:30:54]} {[%emt 00:09:44]} 19. Qh4
{[%clk 00:34:23]} {[%emt 00:07:49]} Qxe5+ {[%clk 00:30:15]} {[%emt 00:01:09]}
20. Kf1 {[%clk 00:34:40]} {[%emt 00:00:12]} Kg7 {[%clk 00:23:35]} {[%emt
00:07:10]} 21. Nd7 {[%clk 00:31:54]} {[%emt 00:03:17]} Be7 {[%clk 00:23:58]}
{[%emt 00:00:06]} 22. Qc4 {[%clk 00:31:17]} {[%emt 00:01:07]} Qh5 {[%clk
00:21:15]} {[%emt 00:03:13]} 23. Kg2 {[%clk 00:19:41]} {[%emt 00:12:06]} Ne5
{[%clk 00:17:36]} {[%emt 00:04:09]} 24. Nxe5 {[%clk 00:14:05]} {[%emt
00:06:07]} Qxe5 {[%clk 00:18:04]} {[%emt 00:00:01]} 25. f4 {[%clk 00:13:41]}
{[%emt 00:00:55]} Qxb2 {[%clk 00:11:45]} {[%emt 00:06:50]} 26. Qxc7 {[%clk
00:12:53]} {[%emt 00:01:17]} Bf6 {[%clk 00:11:52]} {[%emt 00:00:23]} 27. Rb1
{[%clk 00:08:53]} {[%emt 00:04:30]} Qxa2 {[%clk 00:10:11]} {[%emt 00:02:11]} 28.
Qxb7 {[%clk 00:09:15]} {[%emt 00:00:08]} a5 {[%clk 00:09:20]} {[%emt 00:01:21]}
29. Qf3 {[%clk 00:09:01]} {[%emt 00:00:43]} Rab8 {[%clk 00:06:51]} {[%emt
00:02:59]} 30. h4 {[%clk 00:08:19]} {[%emt 00:01:13]} h5 {[%clk 00:05:55]}
{[%emt 00:01:26]} 31. f5 {[%clk 00:07:02]} {[%emt 00:01:47]} Rxb1 {[%clk
00:06:01]} {[%emt 00:00:25]} 32. Rxb1 {[%clk 00:07:31]} {[%emt 00:00:02]} Bxh4
{[%clk 00:04:28]} {[%emt 00:02:03]} 33. Rb6 {[%clk 00:05:05]} {[%emt 00:02:55]}
Rd8 {[%clk 00:03:18]} {[%emt 00:01:40]} 34. Bb1 {[%clk 00:03:23]} {[%emt
00:02:12]} Qd5 {[%clk 00:03:01]} {[%emt 00:00:46]} 35. Be4 {[%clk 00:03:51]}
{[%emt 00:00:02]} Qd4 {[%clk 00:02:26]} {[%emt 00:01:06]} 36. Rb7 {[%clk
00:02:35]} {[%emt 00:01:47]} Rd7 {[%clk 00:01:19]} {[%emt 00:01:37]} 37. Rxd7
{[%clk 00:01:45]} {[%emt 00:01:19]} Qxd7 {[%clk 00:01:48]} {[%emt 00:00:01]} 38.
Qc3+ {[%clk 00:02:07]} {[%emt 00:00:09]} Kh6 {[%clk 00:01:13]} {[%emt
00:01:04]} 39. Qxa5 {[%clk 00:01:08]} {[%emt 00:01:29]} Qd4 {[%clk 00:01:26]}
{[%emt 00:00:17]} 40. Qe1 {[%clk 00:00:38]} {[%emt 00:00:59]} Bxf2 {[%clk
00:01:29]} {[%emt 00:00:27]} 41. Qe2 {[%clk 00:01:03]} {[%emt 00:00:06]} Bh4
{[%clk 00:26:38]} {[%emt 00:05:20]} 42. fxg6 {[%clk 00:29:17]} {[%emt
00:02:16]} fxg6 {[%clk 00:26:29]} {[%emt 00:00:40]} 43. Qf3 {[%clk 00:28:28]}
{[%emt 00:01:19]} Qd6 {[%clk 00:24:12]} {[%emt 00:02:45]} 44. Qe3+ {[%clk
00:26:30]} {[%emt 00:02:29]} g5 {[%clk 00:21:07]} {[%emt 00:03:36]} 45. Bf5
{[%clk 00:25:36]} {[%emt 00:01:23]} Qd5+ {[%clk 00:19:40]} {[%emt 00:01:57]} 46.
Be4 {[%clk 00:24:21]} {[%emt 00:01:45]} Qa2+ {[%clk 00:18:05]} {[%emt
00:02:06]} 47. Kh1 {[%clk 00:24:40]} {[%emt 00:00:09]} Bf2 {[%clk 00:16:41]}
{[%emt 00:01:55]} 48. Qc3 {[%clk 00:24:23]} {[%emt 00:00:48]} g4 {[%clk
00:09:37]} {[%emt 00:07:34]} 49. Qf6# {[%clk 00:24:44]} {[%emt 00:00:08]} 1-0

[Event "Schack-SM 2023: Veteran-SM 65+"]
[Site "Helsingborg Arena, Mellersta Stenbocksgatan 14, Helsingborg, Sweden"]
[Date "2023.07.01"]
[Round "1.2"]
[White "Gromark, Per-Olof"]
[Black "Soderberg, Per"]
[Result "0-1"]
[TimeControl "90 minutes for 40 moves + 30 minutes for the rest of games + 30 seconds per move from move one."]
[BlackTitle "CM"]
[WhiteElo "1875"]
[BlackElo "2111"]

1. c4 {[%clk 01:30:54]} {[%emt 00:00:05]} e6 {[%clk 01:30:51]} {[%emt
00:00:09]} 2. e4 {[%clk 01:30:52]} {[%emt 00:00:32]} c5 {[%clk 01:30:03]}
{[%emt 00:01:19]} 3. Nc3 {[%clk 01:30:44]} {[%emt 00:00:38]} Nc6 {[%clk
01:30:20]} {[%emt 00:00:13]} 4. g3 {[%clk 01:30:47]} {[%emt 00:00:26]} Nf6
{[%clk 01:29:22]} {[%emt 00:01:28]} 5. Bg2 {[%clk 01:31:00]} {[%emt 00:00:16]}
Be7 {[%clk 01:29:37]} {[%emt 00:00:16]} 6. Nge2 {[%clk 01:31:00]} {[%emt
00:00:30]} O-O {[%clk 01:29:28]} {[%emt 00:00:38]} 7. O-O {[%clk 01:31:04]}
{[%emt 00:00:27]} a6 {[%clk 01:26:25]} {[%emt 00:03:33]} 8. d3 {[%clk
01:29:34]} {[%emt 00:02:00]} Rb8 {[%clk 01:26:25]} {[%emt 00:00:30]} 9. a4
{[%clk 01:27:31]} {[%emt 00:02:34]} b6 {[%clk 01:23:25]} {[%emt 00:03:29]} 10.
h3 {[%clk 01:26:40]} {[%emt 00:01:21]} Bb7 {[%clk 01:23:46]} {[%emt 00:00:10]}
11. Be3 {[%clk 01:26:22]} {[%emt 00:00:47]} Qc7 {[%clk 01:19:53]} {[%emt
00:04:23]} 12. Qd2 {[%clk 01:23:37]} {[%emt 00:03:15]} Rbd8 {[%clk 01:16:48]}
{[%emt 00:03:35]} 13. f4 {[%clk 01:19:42]} {[%emt 00:04:24]} Na5 {[%clk
01:12:05]} {[%emt 00:05:13]} 14. Qc2 {[%clk 01:16:19]} {[%emt 00:03:52]} d5
{[%clk 01:08:38]} {[%emt 00:03:59]} 15. cxd5 {[%clk 00:54:32]} {[%emt
00:22:18]} exd5 {[%clk 01:09:00]} {[%emt 00:00:08]} 16. Bf2 {[%clk 00:52:42]}
{[%emt 00:02:20]} d4 {[%clk 01:07:02]} {[%emt 00:02:27]} 17. Nb1 {[%clk
00:49:40]} {[%emt 00:03:32]} Nxe4 {[%clk 00:48:20]} {[%emt 00:19:12]} 18. dxe4
{[%clk 00:46:49]} {[%emt 00:03:21]} d3 {[%clk 00:48:22]} {[%emt 00:00:28]} 19.
Qd1 {[%clk 00:44:33]} {[%emt 00:02:46]} dxe2 {[%clk 00:47:35]} {[%emt
00:01:17]} 20. Qxe2 {[%clk 00:44:57]} {[%emt 00:00:06]} Nb3 {[%clk 00:47:10]}
{[%emt 00:00:55]} 21. Ra2 {[%clk 00:42:17]} {[%emt 00:03:10]} c4 {[%clk
00:36:35]} {[%emt 00:11:05]} 22. Nc3 {[%clk 00:36:50]} {[%emt 00:05:57]} Rd2
{[%clk 00:33:43]} {[%emt 00:03:21]} 23. Qe1 {[%clk 00:36:24]} {[%emt 00:00:56]}
Bc5 {[%clk 00:33:28]} {[%emt 00:00:46]} 24. Bxc5 {[%clk 00:29:41]} {[%emt
00:07:13]} Qxc5+ {[%clk 00:33:33]} {[%emt 00:00:24]} 25. Rf2 {[%clk 00:29:34]}
{[%emt 00:00:37]} Rc2 {[%clk 00:29:04]} {[%emt 00:04:59]} 26. Bf3 {[%clk
00:20:24]} {[%emt 00:09:40]} Nc1 {[%clk 00:25:37]} {[%emt 00:03:58]} 27. b4
{[%clk 00:14:02]} {[%emt 00:06:53]} cxb3 {[%clk 00:25:05]} {[%emt 00:01:01]} 28.
Raxc2 {[%clk 00:13:53]} {[%emt 00:00:39]} Nd3 {[%clk 00:23:31]} {[%emt
00:02:05]} 29. Qf1 {[%clk 00:12:12]} {[%emt 00:02:10]} bxc2 {[%clk 00:23:42]}
{[%emt 00:00:18]} 0-1